fUST/lending_fUST_20250727
["ID","MTS","AMOUNT","RATE_DAILY","PERIOD"]
[375239621,1753595449621,-598.56,0.0002,2]
[375239622,1753595449630,-1639.17,0.0002,2]
[375239623,1753595449640,-750.85,0.0002,2]
[375239624,1753595449652,-486.5,0.0002,2]
[375239625,1753595449662,-460.0,0.0002,2]
[375239626,1753595449672,-465.58709484,0.0002,2]
[375239627,1753595449681,-460.0,0.0002,2]
[375239628,1753595449691,-504.15,0.0002,2]
[375239629,1753595449701,-720.09,0.0002,2]
[375239630,1753595449710,-460.0,0.0002,2]
[375239631,1753595449719,-460.0,0.0002,2]
[375239632,1753595449728,-460.0,0.0002,2]
[375239633,1753595449737,-460.0,0.0002,2]
[375239634,1753595449747,-460.0,0.0002,2]
[375239635,1753595449756,-460.0,0.0002,2]
[375239636,1753595449765,-460.0,0.0002,2]
[375239637,1753595449775,-460.0,0.0002,2]
[375239638,1753595449784,-460.0,0.0002,2]
[375239639,1753595449793,-460.0,0.0002,2]
[375239640,1753595449802,-460.0,0.0002,2]
[375239641,1753595449811,-673.38,0.0002,2]
[375239642,1753595449825,-460.0,0.0002,2]
[375239643,1753595449834,-460.0,0.0002,2]
[375239644,1753595449843,-1680.0,0.00020031,2]
[375239645,1753595449853,-375.0,0.00020033,2]
[375239646,1753595449863,-150.0,0.00020049,2]
[375239647,1753595449872,-154.934253,0.0002005,3]
[375239648,1753595449881,-1069.04364661,0.00020085,2]
[375239649,1753595449890,-3935.02372882,0.00020107,2]
[375239650,1753595449901,-337.0,0.00020131,2]
[375239651,1753595449912,-1000.0,0.00020168,2]
[375239652,1753595449921,-3345.06986918,0.00020186,2]
[375239653,1753595449930,-231.04438741,0.00020191,2]
[375239654,1753595449939,-1500.0,0.00020268,2]
[375239655,1753595449948,-1500.0,0.00020268,2]
[375239656,1753595449958,-1500.0,0.00020268,2]
[375239657,1753595449967,-503.67830945,0.00020268,2]
[375239658,1753595449977,-1003.34196874,0.00020268,2]
[375239659,1753595449986,-1003.59439869,0.00020268,2]
[375239660,1753595449996,-460.0,0.00020273,2]
[375239661,1753595450005,-460.0,0.00020273,2]
[375239662,1753595450015,-460.0,0.00020273,2]
[375239663,1753595450025,-460.0,0.00020273,2]
[375239664,1753595450035,-460.0,0.00020273,2]
[375239665,1753595450044,-460.0,0.00020273,2]
[375239666,1753595450054,-494.81556361,0.00020273,2]
[375239667,1753595450064,-465.45528021,0.00020273,2]
[375239668,1753595450074,-460.0,0.00020273,2]
[375239669,1753595450083,-460.0,0.00020273,2]
[375239670,1753595450093,-460.0,0.00020273,2]
[375239671,1753595450103,-460.0,0.00020273,2]
[375239672,1753595450112,-460.0,0.00020273,2]
[375239673,1753595450122,-576.18931405,0.00020273,2]
[375239674,1753595450130,-3978.79,0.00020273,2]
[375239675,1753595450139,-460.0,0.00020273,2]
[375239676,1753595450151,-460.0,0.00020273,2]
[375239677,1753595450161,-460.0,0.00020273,2]
[375239678,1753595450170,-460.0,0.00020273,2]
[375239679,1753595450180,-460.0,0.00020273,2]
[375239680,1753595450189,-460.0,0.00020273,2]
[375239681,1753595450199,-460.0,0.00020273,2]
[375239682,1753595450208,-460.0,0.00020273,2]
[375239683,1753595450217,-460.0,0.00020273,2]
[375239684,1753595450226,-460.0,0.00020273,2]
[375239685,1753595450235,-460.0,0.00020273,2]
[375239686,1753595450244,-460.0,0.00020273,2]
[375239687,1753595450254,-460.0,0.00020273,2]
[375239688,1753595450263,-460.0,0.00020273,2]
[375239689,1753595450272,-460.0,0.00020273,2]
[375239690,1753595450282,-637.82,0.00020273,2]
[375239691,1753595450291,-460.0,0.00020273,2]
[375239692,1753595450300,-646.88,0.00020273,2]
[375239693,1753595450310,-460.0,0.00020273,2]
[375239694,1753595450319,-460.0,0.00020273,2]
[375239695,1753595450329,-460.0,0.00020273,2]
[375239696,1753595450338,-460.0,0.00020273,2]
[375239697,1753595450348,-1725.54,0.00020273,2]
[375239698,1753595450358,-460.0,0.00020273,2]
[375239699,1753595450367,-460.0,0.00020273,2]
[375239700,1753595450377,-460.0,0.00020273,2]
[375239701,1753595450386,-464.10826767,0.00020273,2]
[375239702,1753595450395,-460.0,0.00020273,2]
[375239703,1753595450404,-460.0,0.00020273,2]
[375239704,1753595450414,-460.0,0.00020273,2]
[375239705,1753595450424,-460.0,0.00020273,2]
[375239706,1753595450434,-460.0,0.00020273,2]
[375239707,1753595450443,-460.0,0.00020273,2]
[375239708,1753595450452,-460.0,0.00020273,2]
[375239709,1753595450463,-460.0,0.00020273,2]
[375239710,1753595450472,-460.0,0.00020273,2]
[375239711,1753595450481,-584.25,0.00020273,2]
[375239712,1753595450491,-460.0,0.00020273,2]
[375239713,1753595450500,-798.5,0.00020273,2]
[375239714,1753595450509,-460.0,0.00020273,2]
[375239715,1753595450519,-460.0,0.00020273,2]
[375239716,1753595450528,-460.0,0.00020273,2]
[375239717,1753595450538,-460.0,0.00020273,2]
[375239718,1753595450547,-460.0,0.00020273,2]
[375239719,1753595450557,-460.0,0.00020273,2]
[375239720,1753595450566,-460.0,0.00020273,2]
[375239721,1753595450575,-460.0,0.00020273,2]
[375239722,1753595450584,-460.0,0.00020273,2]
[375239723,1753595450593,-4006.34,0.00020273,2]
[375239724,1753595450603,-460.0,0.00020273,2]
[375239725,1753595450612,-460.0,0.00020273,2]
[375239726,1753595450621,-460.0,0.00020273,2]
[375239727,1753595450630,-460.0,0.00020273,2]
[375239728,1753595450639,-460.0,0.00020273,2]
[375239729,1753595450651,-460.0,0.00020273,2]
[375239730,1753595450662,-460.0,0.00020273,2]
[375239731,1753595450672,-783.4,0.00020273,2]
[375239732,1753595450681,-460.0,0.00020273,2]
[375239733,1753595450691,-460.0,0.00020273,2]
[375239734,1753595450700,-460.0,0.00020273,2]
[375239735,1753595450710,-460.0,0.00020273,2]
[375239736,1753595450719,-1583.13,0.00020273,2]
[375239737,1753595450728,-460.0,0.00020273,2]
[375239738,1753595450738,-1666.04,0.00020273,2]
[375239739,1753595450747,-1405.32,0.00020273,2]
[375239740,1753595450756,-460.0,0.00020273,2]
[375239741,1753595450766,-460.0,0.00020273,2]
[375239742,1753595450775,-460.0,0.00020273,2]
[375239743,1753595450786,-460.0,0.00020273,2]
[375239744,1753595450796,-460.0,0.00020273,2]
[375239745,1753595450805,-460.0,0.00020273,2]
[375239746,1753595450815,-460.0,0.00020273,2]
[375239747,1753595450827,-460.0,0.00020273,2]
[375239748,1753595450837,-1584.02,0.00020273,2]
[375239749,1753595450847,-466.32,0.00020273,2]
[375239750,1753595450856,-460.0,0.00020273,2]
[375239751,1753595450866,-584.73,0.00020273,2]
[375239752,1753595450875,-746.26,0.00020273,2]
[375239753,1753595450885,-475.24,0.00020273,2]
[375239754,1753595450894,-460.0,0.00020273,2]
[375239755,1753595450903,-1748.75,0.00020273,2]
[375239756,1753595450913,-819.7,0.00020273,2]
[375239757,1753595450922,-460.0,0.00020273,2]
[375239758,1753595450931,-1990.43,0.00020273,2]
[375239759,1753595450940,-460.0,0.00020273,2]
[375239760,1753595450950,-460.0,0.00020273,2]
[375239761,1753595450959,-460.0,0.00020273,2]
[375239762,1753595450969,-476.40567855,0.00020273,2]
[375239763,1753595450979,-460.0,0.00020273,2]
[375239764,1753595450989,-460.0,0.00020273,2]
[375239765,1753595450999,-460.0,0.00020273,2]
[375239766,1753595451008,-460.0,0.00020273,2]
[375239767,1753595451017,-460.0,0.00020273,2]
[375239768,1753595451027,-532.53,0.00020273,2]
[375239769,1753595451037,-460.0,0.00020273,2]
[375239770,1753595451047,-460.0,0.00020273,2]
[375239771,1753595451056,-475.65,0.00020273,2]
[375239772,1753595451066,-266.08128899,0.00020273,2]
[375239773,1753595451075,-460.0,0.00020273,2]
[375239774,1753595451085,-1414.2,0.00020273,2]
[375239775,1753595451094,-460.0,0.00020273,2]
[375239776,1753595451103,-460.0,0.00020273,2]
[375239777,1753595451113,-460.0,0.00020273,2]
[375239778,1753595451123,-460.0,0.00020273,2]
[375239779,1753595451132,-1681.9,0.00020273,2]
[375239780,1753595451141,-460.0,0.00020273,2]
[375239781,1753595451151,-460.0,0.00020273,2]
[375239782,1753595451161,-460.0,0.00020273,2]
[375239783,1753595451170,-1788.4,0.00020273,2]
[375239784,1753595451179,-460.0,0.00020273,2]
[375239785,1753595451189,-460.0,0.00020273,2]
[375239786,1753595451198,-670.56,0.00020273,2]
[375239787,1753595451208,-460.0,0.00020273,2]
[375239788,1753595451217,-1567.29,0.00020273,2]
[375239789,1753595451227,-517.79,0.00020273,2]
[375239790,1753595451237,-460.0,0.00020273,2]
[375239791,1753595451246,-467.62948119,0.00020273,2]
[375239792,1753595451255,-460.0,0.00020273,2]
[375239793,1753595451265,-460.0,0.00020273,2]
[375239794,1753595451274,-460.0,0.00020273,2]
[375239795,1753595451284,-460.0,0.00020273,2]
[375239796,1753595451293,-460.0,0.00020273,2]
[375239797,1753595451303,-460.0,0.00020273,2]
[375239798,1753595451312,-460.0,0.00020273,2]
[375239799,1753595451321,-460.0,0.00020273,2]
[375239800,1753595451331,-460.0,0.00020273,2]
[375239801,1753595451340,-460.0,0.00020273,2]
[375239802,1753595451348,-460.0,0.00020273,2]
[375239803,1753595451358,-460.0,0.00020273,2]
[375239804,1753595451367,-568.48641063,0.00020273,2]
[375239805,1753595451376,-622.32,0.00020273,2]
[375239806,1753595451386,-792.06,0.00020273,2]
[375239807,1753595451396,-460.0,0.00020273,2]
[375239808,1753595451405,-460.0,0.00020273,2]
[375239809,1753595451415,-460.0,0.00020273,2]
[375239810,1753595451424,-460.0,0.00020273,2]
[375239811,1753595451434,-460.0,0.00020273,2]
[375239812,1753595451443,-598.56,0.00020273,2]
[375239813,1753595451452,-1639.17,0.00020273,2]
[375239814,1753595451461,-750.85,0.00020273,2]
[375239815,1753595451470,-486.5,0.00020273,2]
[375239816,1753595451480,-460.0,0.00020273,2]
[375239817,1753595451489,-460.0,0.00020273,2]
[375239818,1753595451498,-504.15,0.00020273,2]
[375239819,1753595451507,-720.09,0.00020273,2]
[375239820,1753595451516,-460.0,0.00020273,2]
[375239821,1753595451525,-460.0,0.00020273,2]
[375239822,1753595451535,-460.0,0.00020273,2]
[375239823,1753595451545,-460.0,0.00020273,2]
[375239824,1753595451681,-460.0,0.00020273,2]
[375239825,1753595451692,-476.44764033,0.00020273,2]
[375239826,1753595451702,-460.0,0.00020273,2]
[375239827,1753595451712,-460.0,0.00020273,2]
[375239828,1753595451721,-460.0,0.00020273,2]
[375239829,1753595451730,-460.0,0.00020273,2]
[375239830,1753595451739,-460.0,0.00020273,2]
[375239831,1753595451748,-673.38,0.00020273,2]
[375239832,1753595451758,-460.0,0.00020273,2]
[375239833,1753595451767,-3345.06986918,0.00020285,2]
[375239834,1753595451776,-3935.02372882,0.00020314,3]
[375239835,1753595451785,-283.75,0.00020416,2]
[375239836,1753595451794,-155.55,0.00020434,2]
[375239837,1753595451803,-1069.04364661,0.00020447,2]
[375239838,1753595451812,-3935.02372882,0.00020521,3]
[375239839,1753595451825,-216.01841554,0.00020527,2]
[375239840,1753595451834,-231.30466539,0.00020527,2]
[375239841,1753595451843,-214.84090509,0.00020527,2]
[375239842,1753595451851,-160.0,0.00020527,2]
[375239843,1753595451862,-160.0,0.00020527,2]
[375239844,1753595451871,-160.0,0.00020527,2]
[375239845,1753595451880,-477.07289566,0.00020527,2]
[375239846,1753595451888,-12632.25855046,0.00020527,2]
[375239847,1753595451899,-840.75038169,0.00020527,2]
[375239848,1753595451909,-160.0,0.00020527,2]
[375239849,1753595451918,-160.0,0.00020527,2]
[375239850,1753595451927,-492.22,0.00020547,2]
[375239851,1753595451936,-460.0,0.00020547,2]
[375239852,1753595451946,-460.0,0.00020547,2]
[375239853,1753595451955,-460.0,0.00020547,2]
[375239854,1753595451965,-460.0,0.00020547,2]
[375239855,1753595451975,-460.0,0.00020547,2]
[375239856,1753595451986,-381.07630243,0.00020547,2]
[375239857,1753595451995,-460.0,0.00020547,2]
[375239858,1753595452005,-460.0,0.00020547,2]
[375239859,1753595452015,-460.0,0.00020547,2]
[375239860,1753595452024,-3978.79,0.00020547,2]
[375239861,1753595452034,-430.49232355,0.00020547,2]
[375239862,1753595452043,-460.0,0.00020547,2]
[375239863,1753595452052,-460.0,0.00020547,2]
[375239864,1753595452062,-460.0,0.00020547,2]
[375239865,1753595452071,-460.0,0.00020547,2]
[375239866,1753595452080,-460.0,0.00020547,2]
[375239867,1753595452089,-460.0,0.00020547,2]
[375239868,1753595452099,-460.0,0.00020547,2]
[375239869,1753595452108,-460.0,0.00020547,2]
[375239870,1753595452118,-571.73783552,0.00020547,2]
[375239871,1753595452128,-460.0,0.00020547,2]
[375239872,1753595452137,-460.0,0.00020547,2]
[375239873,1753595452148,-460.0,0.00020547,2]
[375239874,1753595452157,-460.0,0.00020547,2]
[375239875,1753595452166,-637.82,0.00020547,2]
[375239876,1753595452175,-460.0,0.00020547,2]
[375239877,1753595452185,-646.88,0.00020547,2]
[375239878,1753595452194,-460.0,0.00020547,2]
[375239879,1753595452204,-460.0,0.00020547,2]
[375239880,1753595452213,-460.0,0.00020547,2]
[375239881,1753595452223,-460.0,0.00020547,2]
[375239882,1753595452232,-1725.54,0.00020547,2]
[375239883,1753595452241,-460.0,0.00020547,2]
[375239884,1753595452251,-460.0,0.00020547,2]
[375239885,1753595452260,-460.0,0.00020547,2]
[375239886,1753595452269,-460.0,0.00020547,2]
[375239887,1753595452279,-460.0,0.00020547,2]
[375239888,1753595452288,-460.0,0.00020547,2]
[375239889,1753595452297,-460.0,0.00020547,2]
[375239890,1753595452307,-460.0,0.00020547,2]
[375239891,1753595452316,-460.0,0.00020547,2]
[375239892,1753595452325,-460.0,0.00020547,2]
[375239893,1753595452334,-460.0,0.00020547,2]
[375239894,1753595452343,-584.25,0.00020547,2]
[375239895,1753595452352,-460.0,0.00020547,2]
[375239896,1753595452362,-798.5,0.00020547,2]
[375239897,1753595452371,-460.0,0.00020547,2]
[375239898,1753595452380,-460.0,0.00020547,2]
[375239899,1753595452389,-219.14,0.00020547,2]
[375239900,1753595452401,-460.0,0.00020547,2]
[375239901,1753595452410,-460.0,0.00020547,2]
[375239902,1753595452419,-460.0,0.00020547,2]
[375239903,1753595452429,-460.0,0.00020547,2]
[375239904,1753595452438,-460.0,0.00020547,2]
[375239905,1753595452447,-4006.34,0.00020547,2]
[375239906,1753595452456,-460.0,0.00020547,2]
[375239907,1753595452466,-460.0,0.00020547,2]
[375239908,1753595452475,-460.0,0.00020547,2]
[375239909,1753595452484,-460.0,0.00020547,2]
[375239910,1753595452493,-460.0,0.00020547,2]
[375239911,1753595452502,-460.0,0.00020547,2]
[375239912,1753595452511,-783.4,0.00020547,2]
[375239913,1753595452520,-460.0,0.00020547,2]
[375239914,1753595452529,-460.0,0.00020547,2]
[375239915,1753595452538,-460.0,0.00020547,2]
[375239916,1753595452547,-460.0,0.00020547,2]
[375239917,1753595452556,-1583.13,0.00020547,2]
[375239918,1753595452565,-460.0,0.00020547,2]
[375239919,1753595452574,-1666.04,0.00020547,2]
[375239920,1753595452583,-1405.32,0.00020547,2]
[375239921,1753595452592,-317.07667341,0.00020547,2]
[375239922,1753595452601,-460.0,0.00020547,2]
[375239923,1753595452610,-460.0,0.00020547,2]
[375239924,1753595452619,-580.27323278,0.00020547,2]
[375239925,1753595452629,-460.0,0.00020547,2]
[375239926,1753595452638,-460.0,0.00020547,2]
[375239927,1753595452649,-405.38960391,0.00020547,2]
[375239928,1753595452658,-460.0,0.00020547,2]
[375239929,1753595452667,-1584.02,0.00020547,2]
[375239930,1753595452676,-460.0,0.00020547,2]
[375239931,1753595452685,-584.73,0.00020547,2]
[375239932,1753595452694,-746.26,0.00020547,2]
[375239933,1753595452704,-475.24,0.00020547,2]
[375239934,1753595452713,-1748.75,0.00020547,2]
[375239935,1753595452722,-819.7,0.00020547,2]
[375239936,1753595452732,-460.0,0.00020547,2]
[375239937,1753595452741,-1990.43,0.00020547,2]
[375239938,1753595452751,-469.10671878,0.00020547,2]
[375239939,1753595452761,-460.0,0.00020547,2]
[375239940,1753595452770,-460.0,0.00020547,2]
[375239941,1753595452781,-460.0,0.00020547,2]
[375239942,1753595452790,-460.0,0.00020547,2]
[375239943,1753595452799,-465.78350436,0.00020547,2]
[375239944,1753595452808,-460.0,0.00020547,2]
[375239945,1753595452821,-460.0,0.00020547,2]
[375239946,1753595452830,-532.53,0.00020547,2]
[375239947,1753595452840,-465.13297218,0.00020547,2]
[375239948,1753595452849,-460.0,0.00020547,2]
[375239949,1753595452858,-475.65,0.00020547,2]
[375239950,1753595452867,-465.49613137,0.00020547,2]
[375239951,1753595452876,-1414.2,0.00020547,2]
[375239952,1753595452886,-460.0,0.00020547,2]
[375239953,1753595452895,-460.0,0.00020547,2]
[375239954,1753595452905,-460.0,0.00020547,2]
[375239955,1753595452914,-460.0,0.00020547,2]
[375239956,1753595452923,-1681.9,0.00020547,2]
[375239957,1753595452933,-422.9790265,0.00020547,2]
[375239958,1753595452942,-584.65265206,0.00020547,2]
[375239959,1753595452951,-1788.4,0.00020547,2]
[375239960,1753595452961,-460.0,0.00020547,2]
[375239961,1753595452970,-460.0,0.00020547,2]
[375239962,1753595452979,-670.56,0.00020547,2]
[375239963,1753595452989,-463.50858852,0.00020547,2]
[375239964,1753595452998,-1567.29,0.00020547,2]
[375239965,1753595453007,-517.79,0.00020547,2]
[375239966,1753595453016,-460.0,0.00020547,2]
[375239967,1753595453026,-460.0,0.00020547,2]
[375239968,1753595453036,-460.0,0.00020547,2]
[375239969,1753595453045,-460.0,0.00020547,2]
[375239970,1753595453054,-460.0,0.00020547,2]
[375239971,1753595453063,-460.0,0.00020547,2]
[375239972,1753595453073,-460.0,0.00020547,2]
[375239973,1753595453081,-460.0,0.00020547,2]
[375239974,1753595453090,-466.56837024,0.00020547,2]
[375239975,1753595453100,-460.0,0.00020547,2]
[375239976,1753595453109,-464.39177726,0.00020547,2]
[375239977,1753595453120,-460.0,0.00020547,2]
[375239978,1753595453130,-622.32,0.00020547,2]
[375239979,1753595453140,-792.06,0.00020547,2]
[375239980,1753595453150,-460.0,0.00020547,2]
[375239981,1753595453160,-460.0,0.00020547,2]
[375239982,1753595453169,-460.0,0.00020547,2]
[375239983,1753595453178,-460.0,0.00020547,2]
[375239984,1753595453189,-460.0,0.00020547,2]
[375239985,1753595453198,-598.56,0.00020547,2]
[375239986,1753595453207,-1639.17,0.00020547,2]
[375239987,1753595453217,-750.85,0.00020547,2]
[375239988,1753595453226,-486.5,0.00020547,2]
[375239989,1753595453235,-460.0,0.00020547,2]
[375239990,1753595453244,-460.0,0.00020547,2]
[375239991,1753595453253,-504.15,0.00020547,2]
[375239992,1753595453263,-720.09,0.00020547,2]
[375239993,1753595453272,-460.0,0.00020547,2]
[375239994,1753595453281,-460.0,0.00020547,2]
[375239995,1753595453291,-320.21407112,0.00020547,2]
[375239996,1753595453301,-343.5889549,0.00020547,2]
[375239997,1753595453310,-460.0,0.00020547,2]
[375239998,1753595453319,-460.0,0.00020547,2]
[375239999,1753595453329,-460.0,0.00020547,2]
[375240000,1753595453338,-460.0,0.00020547,2]
[375240001,1753595453347,-460.0,0.00020547,2]
[375240002,1753595453356,-673.38,0.00020547,2]
[375240003,1753595453366,-460.0,0.00020547,2]
[375240004,1753595453375,-3345.06986918,0.00020548,2]
[375240005,1753595453384,-151.0,0.00020607,2]
[375240006,1753595453394,-25000.0,0.00020607,2]
[375240007,1753595453404,-151.0,0.00020607,2]
[375240008,1753595453413,-151.0,0.00020607,2]
[375240009,1753595453423,-151.0,0.00020607,2]
[375240010,1753595453432,-151.0,0.00020607,2]
[375240011,1753595453441,-151.0,0.00020607,2]
[375240012,1753595453451,-151.0,0.00020607,2]
[375240013,1753595453460,-151.0,0.00020607,2]
[375240014,1753595453470,-151.0,0.00020607,2]
[375240015,1753595453480,-151.0,0.00020607,2]
[375240016,1753595453489,-151.0,0.00020607,2]
[375240017,1753595453498,-151.0,0.00020607,2]
[375240018,1753595453507,-151.0,0.00020607,2]
[375240019,1753595453517,-151.0,0.00020607,2]
[375240020,1753595453526,-151.0,0.00020607,2]
[375240021,1753595453535,-151.0,0.00020607,2]
[375240022,1753595453544,-151.0,0.00020607,2]
[375240023,1753595453554,-151.0,0.00020607,2]
[375240024,1753595453562,-164.19803782,0.00020607,2]
[375240025,1753595453572,-3935.02372882,0.00020728,3]
[375240026,1753595453581,-151.0,0.000208,4]
[375240027,1753595453591,-2000.0,0.00020816,2]
[375240028,1753595453601,-919.70348114,0.00020816,2]
[375240029,1753595453610,-460.0,0.00020821,2]
[375240030,1753595453620,-331.91,0.00020821,2]
[375240031,1753595453629,-460.0,0.00020821,2]
[375240032,1753595453639,-460.0,0.00020821,2]
[375240033,1753595453649,-460.0,0.00020821,2]
[375240034,1753595453666,-460.0,0.00020821,2]
[375240035,1753595453676,-460.0,0.00020821,2]
[375240036,1753595453685,-3978.79,0.00020821,2]
[375240037,1753595453695,-284.8584332,0.00020821,2]
[375240038,1753595453704,-466.0895891,0.00020821,2]
[375240039,1753595453714,-460.0,0.00020821,2]
[375240040,1753595453723,-460.0,0.00020821,2]
[375240041,1753595453732,-460.0,0.00020821,2]
[375240042,1753595453741,-460.0,0.00020821,2]
[375240043,1753595453751,-460.0,0.00020821,2]
[375240044,1753595453761,-460.0,0.00020821,2]
[375240045,1753595453771,-460.0,0.00020821,2]
[375240046,1753595453780,-460.0,0.00020821,2]
[375240047,1753595453790,-637.82,0.00020821,2]
[375240048,1753595453799,-460.0,0.00020821,2]
[375240049,1753595453808,-646.88,0.00020821,2]
[375240050,1753595453820,-460.0,0.00020821,2]
[375240051,1753595453830,-460.0,0.00020821,2]
[375240052,1753595453839,-460.0,0.00020821,2]
[375240053,1753595453942,-1725.54,0.00020821,2]
[375240054,1753595453952,-460.0,0.00020821,2]
[375240055,1753595453962,-460.0,0.00020821,2]
[375240056,1753595453971,-460.0,0.00020821,2]
[375240057,1753595453981,-460.0,0.00020821,2]
[375240058,1753595453990,-460.0,0.00020821,2]
[375240059,1753595453999,-460.0,0.00020821,2]
[375240060,1753595454009,-460.0,0.00020821,2]
[375240061,1753595454019,-437.88,0.00020821,2]
[375240062,1753595454028,-460.0,0.00020821,2]
[375240063,1753595454038,-253.97620173,0.00020821,2]
[375240064,1753595454047,-460.0,0.00020821,2]
[375240065,1753595454057,-584.25,0.00020821,2]
[375240066,1753595454067,-460.0,0.00020821,2]
[375240067,1753595454076,-798.5,0.00020821,2]
[375240068,1753595454085,-460.0,0.00020821,2]
[375240069,1753595454095,-460.0,0.00020821,2]
[375240070,1753595454104,-460.0,0.00020821,2]
[375240071,1753595454113,-460.0,0.00020821,2]
[375240072,1753595454123,-460.0,0.00020821,2]
[375240073,1753595454138,-460.0,0.00020821,2]
[375240074,1753595454148,-460.0,0.00020821,2]
[375240075,1753595454157,-4006.34,0.00020821,2]
[375240076,1753595454167,-460.0,0.00020821,2]
[375240077,1753595454176,-460.0,0.00020821,2]
[375240078,1753595454186,-460.0,0.00020821,2]
[375240079,1753595454195,-460.0,0.00020821,2]
[375240080,1753595454205,-460.0,0.00020821,2]
[375240081,1753595454214,-783.4,0.00020821,2]
[375240082,1753595454223,-460.0,0.00020821,2]
[375240083,1753595454232,-460.0,0.00020821,2]
[375240084,1753595454242,-460.0,0.00020821,2]
[375240085,1753595454251,-460.0,0.00020821,2]
[375240086,1753595454261,-1583.13,0.00020821,2]
[375240087,1753595454270,-460.0,0.00020821,2]
[375240088,1753595454279,-1666.04,0.00020821,2]
[375240089,1753595454289,-1405.32,0.00020821,2]
[375240090,1753595454298,-460.0,0.00020821,2]
[375240091,1753595454307,-460.0,0.00020821,2]
[375240092,1753595454317,-460.0,0.00020821,2]
[375240093,1753595454327,-460.0,0.00020821,2]
[375240094,1753595454336,-460.0,0.00020821,2]
[375240095,1753595454345,-1584.02,0.00020821,2]
[375240096,1753595454355,-460.0,0.00020821,2]
[375240097,1753595454364,-584.73,0.00020821,2]
[375240098,1753595454373,-746.26,0.00020821,2]
[375240099,1753595454382,-475.24,0.00020821,2]
[375240100,1753595454392,-1748.75,0.00020821,2]
[375240101,1753595454402,-819.7,0.00020821,2]
[375240102,1753595454411,-460.0,0.00020821,2]
[375240103,1753595454421,-1990.43,0.00020821,2]
[375240104,1753595454432,-467.63122922,0.00020821,2]
[375240105,1753595454442,-460.0,0.00020821,2]
[375240106,1753595454452,-460.0,0.00020821,2]
[375240107,1753595454462,-460.0,0.00020821,2]
[375240108,1753595454471,-460.0,0.00020821,2]
[375240109,1753595454481,-460.0,0.00020821,2]
[375240110,1753595454490,-532.53,0.00020821,2]
[375240111,1753595454500,-460.0,0.00020821,2]
[375240112,1753595454510,-475.65,0.00020821,2]
[375240113,1753595454520,-1414.2,0.00020821,2]
[375240114,1753595454529,-460.0,0.00020821,2]
[375240115,1753595454539,-460.0,0.00020821,2]
[375240116,1753595454549,-465.15033572,0.00020821,2]
[375240117,1753595454559,-277.73331554,0.00020821,2]
[375240118,1753595454568,-1681.9,0.00020821,2]
[375240119,1753595454578,-460.0,0.00020821,2]
[375240120,1753595454587,-1788.4,0.00020821,2]